[Event "*** Titled Tuesday Blitz"]
[Site "Chess.com"]
[Date "2021.03.02"]
[Round "3"]
[White "MirMan90"]
[Black "Grandmaster2B"]
[Result "1-0"]
[WhiteElo "2747"]
[BlackElo "2488"]
[TimeControl "180+1"]
[EndTime "10:29:02 PST"]
[Termination "MirMan90 won by resignation"]

1. d4 {[%clk 0:02:58.9]} 1... Nf6 {[%clk 0:03:00]} 2. c4 {[%clk 0:02:58.9]} 2...
e6 {[%clk 0:03:00.4]} 3. Nc3 {[%clk 0:02:59.1]} 3... Bb4 {[%clk 0:03:01]} 4. Qc2
{[%clk 0:02:59.4]} 4... O-O {[%clk 0:03:00.9]} 5. e4 {[%clk 0:02:59.6]} 5... d5
{[%clk 0:03:00.5]} 6. e5 {[%clk 0:02:59.7]} 6... Ne4 {[%clk 0:03:00.9]} 7. Bd3
{[%clk 0:03:00]} 7... c5 {[%clk 0:03:01.4]} 8. Ne2 {[%clk 0:02:59.6]} 8... Nc6
{[%clk 0:03:00.9]} 9. O-O {[%clk 0:02:53.1]} 9... Nxd4 {[%clk 0:02:28.1]} 10.
Nxd4 {[%clk 0:02:51.2]} 10... cxd4 {[%clk 0:02:29]} 11. Nxe4 {[%clk 0:02:50.9]}
11... dxe4 {[%clk 0:02:29.9]} 12. Bxe4 {[%clk 0:02:51]} 12... g6 {[%clk
0:02:30.8]} 13. a3 {[%clk 0:02:48.9]} 13... Be7 {[%clk 0:02:29.2]} 14. Bh6
{[%clk 0:02:47.8]} 14... Re8 {[%clk 0:02:28.4]} 15. Rad1 {[%clk 0:02:47.4]}
15... Qc7 {[%clk 0:02:28.6]} 16. f4 {[%clk 0:02:39.7]} 16... Bc5 {[%clk
0:02:28.5]} 17. Kh1 {[%clk 0:02:32]} 17... a5 {[%clk 0:02:28.6]} 18. h4 {[%clk
0:02:29]} 18... Bd7 {[%clk 0:02:15.1]} 19. h5 {[%clk 0:02:23.2]} 19... Bc6
{[%clk 0:02:15.4]} 20. hxg6 {[%clk 0:02:17.5]} 20... Bxe4 {[%clk 0:02:15.6]} 21.
Qxe4 {[%clk 0:02:17.3]} 21... fxg6 {[%clk 0:02:11.8]} 22. Bg5 {[%clk 0:02:06.5]}
22... Qc6 {[%clk 0:02:11.7]} 23. Qd3 {[%clk 0:02:00.5]} 23... b6 {[%clk
0:02:06.2]} 24. Kh2 {[%clk 0:02:00.3]} 24... Ra7 {[%clk 0:02:05.1]} 25. g4
{[%clk 0:01:58.5]} 25... Rf7 {[%clk 0:01:59.8]} 26. Kg3 {[%clk 0:01:58.2]} 26...
Rd7 {[%clk 0:01:47.2]} 27. Rh1 {[%clk 0:01:55.1]} 27... Be7 {[%clk 0:01:47.5]}
28. Bh6 {[%clk 0:01:35]} 28... a4 {[%clk 0:01:43.4]} 29. Rh2 {[%clk 0:01:34.4]}
29... Rc8 {[%clk 0:01:39.2]} 30. Rc1 {[%clk 0:01:08.6]} 30... b5 {[%clk
0:01:37]} 31. c5 {[%clk 0:01:06.8]} 31... Qd5 {[%clk 0:01:29.2]} 32. Rch1 {[%clk
0:00:53.7]} 32... Qb3 {[%clk 0:01:15.6]} 33. Qxb3 {[%clk 0:00:50.1]} 33... axb3
{[%clk 0:01:16.5]} 34. Bg7 {[%clk 0:00:46.4]} 34... Bh4+ {[%clk 0:01:15.7]} 35.
Rxh4 {[%clk 0:00:42.2]} 35... Rxg7 {[%clk 0:01:16.6]} 36. Rd1 {[%clk 0:00:41.9]}
36... Rd7 {[%clk 0:01:14]} 37. Rd3 {[%clk 0:00:41.1]} 37... Rxc5 {[%clk
0:01:13]} 38. Rh2 {[%clk 0:00:39.3]} 38... Rc2 {[%clk 0:01:10.1]} 39. Rhd2
{[%clk 0:00:37.6]} 39... Kf7 {[%clk 0:01:04.2]} 40. g5 {[%clk 0:00:36.3]} 40...
Ke7 {[%clk 0:01:01.6]} 41. Kf3 {[%clk 0:00:36.3]} 41... Rdc7 {[%clk 0:00:53.8]}
42. Rxd4 {[%clk 0:00:33.3]} 42... Rxd2 {[%clk 0:00:53.9]} 43. Rxd2 {[%clk
0:00:33.4]} 43... Rc2 {[%clk 0:00:54.6]} 44. Ke3 {[%clk 0:00:33.8]} 44... Rc1
{[%clk 0:00:50.8]} 45. Rd3 {[%clk 0:00:33.6]} 45... Re1+ {[%clk 0:00:46.5]} 46.
Kf2 {[%clk 0:00:33.4]} 46... Rh1 {[%clk 0:00:44.5]} 47. Rxb3 {[%clk 0:00:32.4]}
47... Rh4 {[%clk 0:00:44.4]} 48. Kg3 {[%clk 0:00:32.3]} 48... Rh1 {[%clk
0:00:44.7]} 49. Rxb5 {[%clk 0:00:32.2]} 49... h5 {[%clk 0:00:42.3]} 50. gxh6
{[%clk 0:00:31.9]} 50... Rxh6 {[%clk 0:00:43.2]} 51. Rb7+ {[%clk 0:00:31.8]}
51... Kd8 {[%clk 0:00:43]} 52. a4 {[%clk 0:00:31.9]} 52... Kc8 {[%clk
0:00:43.2]} 53. Rb6 {[%clk 0:00:31.4]} 53... Kd7 {[%clk 0:00:42.4]} 54. a5
{[%clk 0:00:31.2]} 54... Rh1 {[%clk 0:00:41.3]} 55. b4 {[%clk 0:00:31.2]} 55...
Rg1+ {[%clk 0:00:39.6]} 56. Kf2 {[%clk 0:00:31.1]} 56... Rg4 {[%clk 0:00:40.1]}
57. Kf3 {[%clk 0:00:31.2]} 57... Rg1 {[%clk 0:00:41]} 58. a6 {[%clk 0:00:31.3]}
58... g5 {[%clk 0:00:41.6]} 59. fxg5 {[%clk 0:00:30.3]} 59... Rxg5 {[%clk
0:00:42.5]} 60. Kf4 {[%clk 0:00:30.3]} 60... Rf5+ {[%clk 0:00:42.3]} 61. Ke4
{[%clk 0:00:30.6]} 61... Rf1 {[%clk 0:00:42.7]} 62. Rb7+ {[%clk 0:00:30.3]}
62... Kc6 {[%clk 0:00:42.5]} 63. b5+ {[%clk 0:00:30.4]} 63... Kc5 {[%clk
0:00:42.3]} 64. a7 {[%clk 0:00:30.3]} 64... Re1+ {[%clk 0:00:42.2]} 65. Kd3
{[%clk 0:00:29.1]} 65... Ra1 {[%clk 0:00:43.1]} 66. b6 {[%clk 0:00:29]} 66...
Kc6 {[%clk 0:00:44]} 67. Rb8 {[%clk 0:00:28.8]} 67... Ra3+ {[%clk 0:00:44.9]}
68. Kc2 {[%clk 0:00:28.9]} 68... Ra2+ {[%clk 0:00:45.8]} 69. Kb3 {[%clk
0:00:28.9]} 69... Ra6 {[%clk 0:00:46]} 1-0

[Event "*** Titled Tuesday Blitz"]
[Site "Chess.com"]
[Date "2021.03.02"]
[Round "3"]
[White "QuintilianoR"]
[Black "sergeikim"]
[Result "0-1"]
[WhiteElo "2708"]
[BlackElo "2522"]
[TimeControl "180+1"]
[EndTime "10:29:03 PST"]
[Termination "sergeikim won by resignation"]

1. d4 {[%clk 0:03:00.9]} 1... Nf6 {[%clk 0:02:59.4]} 2. c4 {[%clk 0:03:00.6]}
2... g6 {[%clk 0:02:59.4]} 3. Nf3 {[%clk 0:03:00.7]} 3... Bg7 {[%clk 0:02:59.4]}
4. Nc3 {[%clk 0:03:01.1]} 4... O-O {[%clk 0:02:59.3]} 5. e4 {[%clk 0:03:00.8]}
5... d6 {[%clk 0:02:59.4]} 6. Be2 {[%clk 0:03:01.3]} 6... e5 {[%clk 0:02:59.2]}
7. O-O {[%clk 0:03:01.7]} 7... exd4 {[%clk 0:02:59]} 8. Nxd4 {[%clk 0:03:01.4]}
8... Re8 {[%clk 0:02:59.2]} 9. f3 {[%clk 0:03:01.3]} 9... Nbd7 {[%clk
0:02:59.3]} 10. Bg5 {[%clk 0:02:50.5]} 10... c6 {[%clk 0:02:59]} 11. Kh1 {[%clk
0:02:50]} 11... a5 {[%clk 0:02:58.3]} 12. Qd2 {[%clk 0:02:47.7]} 12... a4 {[%clk
0:02:58.2]} 13. Rab1 {[%clk 0:02:37.8]} 13... Qb6 {[%clk 0:02:54.4]} 14. Nc2
{[%clk 0:02:35.6]} 14... Re6 {[%clk 0:02:50.2]} 15. b4 {[%clk 0:02:11.1]} 15...
axb3 {[%clk 0:02:49.1]} 16. axb3 {[%clk 0:02:12]} 16... Nc5 {[%clk 0:02:46.8]}
17. Be3 {[%clk 0:01:25.8]} 17... Qc7 {[%clk 0:02:42]} 18. Nd4 {[%clk 0:01:21.5]}
18... Re8 {[%clk 0:02:41.2]} 19. b4 {[%clk 0:01:15.7]} 19... Ne6 {[%clk
0:02:40.4]} 20. Rfc1 {[%clk 0:00:55.4]} 20... Qd8 {[%clk 0:02:29.3]} 21. Rd1
{[%clk 0:00:53.3]} 21... Nd7 {[%clk 0:02:24.5]} 22. b5 {[%clk 0:00:41.7]} 22...
Qc7 {[%clk 0:02:21]} 23. Nxe6 {[%clk 0:00:29.6]} 23... Rxe6 {[%clk 0:02:20]} 24.
b6 {[%clk 0:00:26.1]} 24... Qd8 {[%clk 0:02:17.4]} 25. c5 {[%clk 0:00:24.6]}
25... dxc5 {[%clk 0:02:09.8]} 26. Bc4 {[%clk 0:00:19.5]} 26... Re8 {[%clk
0:02:06.5]} 27. Bxc5 {[%clk 0:00:18.1]} 27... Qf6 {[%clk 0:01:55.9]} 28. Bd4
{[%clk 0:00:18.4]} 28... Qxd4 {[%clk 0:01:50.1]} 29. Qxd4 {[%clk 0:00:19.3]}
29... Bxd4 {[%clk 0:01:50.3]} 30. Rxd4 {[%clk 0:00:20.2]} 30... Ra3 {[%clk
0:01:40.8]} 31. Ne2 {[%clk 0:00:14.6]} 31... Ne5 {[%clk 0:01:32.8]} 32. Bb3
{[%clk 0:00:14.5]} 32... Kg7 {[%clk 0:01:21.8]} 33. h3 {[%clk 0:00:14.7]} 33...
h5 {[%clk 0:01:18.8]} 34. Nf4 {[%clk 0:00:13.5]} 34... h4 {[%clk 0:01:16.4]} 35.
Kh2 {[%clk 0:00:13.4]} 35... Nd7 {[%clk 0:01:15.3]} 36. Bc4 {[%clk 0:00:12.1]}
36... Nc5 {[%clk 0:01:13.9]} 37. Nd3 {[%clk 0:00:11.4]} 37... Na4 {[%clk
0:01:05.4]} 38. Rc1 {[%clk 0:00:09]} 38... Nxb6 {[%clk 0:01:03]} 39. Nc5 {[%clk
0:00:08.1]} 39... Nxc4 {[%clk 0:00:54.6]} 40. Rcxc4 {[%clk 0:00:09]} 40... Ra2
{[%clk 0:00:53.5]} 41. Nd3 {[%clk 0:00:08.9]} 41... Be6 {[%clk 0:00:51.5]} 42.
Rb4 {[%clk 0:00:08.6]} 42... b5 {[%clk 0:00:51.5]} 43. Nc5 {[%clk 0:00:08.6]}
43... Bc4 {[%clk 0:00:50.9]} 44. Rd1 {[%clk 0:00:08.7]} 44... Rc2 {[%clk
0:00:48.9]} 45. Na6 {[%clk 0:00:06.9]} 45... Ra8 {[%clk 0:00:48]} 46. Nc7 {[%clk
0:00:07.1]} 46... Raa2 {[%clk 0:00:47.4]} 47. Rg1 {[%clk 0:00:06]} 47... c5
{[%clk 0:00:46.1]} 48. Rbb1 {[%clk 0:00:05.8]} 48... b4 {[%clk 0:00:45.9]} 49.
Ne8+ {[%clk 0:00:06.5]} 49... Kf8 {[%clk 0:00:45.4]} 50. Nd6 {[%clk 0:00:07.4]}
50... Be6 {[%clk 0:00:44.4]} 51. Nb5 {[%clk 0:00:07.3]} 51... b3 {[%clk
0:00:42.8]} 52. Nc7 {[%clk 0:00:07.6]} 52... c4 {[%clk 0:00:41.8]} 53. Nxe6+
{[%clk 0:00:07.4]} 53... fxe6 {[%clk 0:00:41.9]} 54. Rbd1 {[%clk 0:00:08.3]}
54... Ke7 {[%clk 0:00:41]} 55. e5 {[%clk 0:00:08.7]} 55... Rd2 {[%clk
0:00:40.4]} 56. Rc1 {[%clk 0:00:08.4]} 56... Rac2 {[%clk 0:00:39.5]} 57. Ra1
{[%clk 0:00:09.1]} 57... b2 {[%clk 0:00:39.5]} 58. Ra7+ {[%clk 0:00:09.2]} 58...
Rd7 {[%clk 0:00:39.2]} 59. Ra4 {[%clk 0:00:09.1]} 59... Rc1 {[%clk 0:00:37.8]}
60. Rb4 {[%clk 0:00:08.4]} 0-1

[Event "*** Titled Tuesday Blitz"]
[Site "Chess.com"]
[Date "2021.03.02"]
[Round "3"]
[White "maxip32"]
[Black "miredenizdogan"]
[Result "1-0"]
[WhiteElo "2521"]
[BlackElo "2267"]
[TimeControl "180+1"]
[EndTime "10:29:04 PST"]
[Termination "maxip32 won on time"]

1. e4 {[%clk 0:03:00.9]} 1... e6 {[%clk 0:02:59.7]} 2. d3 {[%clk 0:02:53.4]}
2... d5 {[%clk 0:02:59.3]} 3. Nd2 {[%clk 0:02:54.3]} 3... Nf6 {[%clk 0:02:56.5]}
4. Ngf3 {[%clk 0:02:53.8]} 4... Nc6 {[%clk 0:02:54.8]} 5. c3 {[%clk 0:02:48.3]}
5... dxe4 {[%clk 0:02:50.4]} 6. dxe4 {[%clk 0:02:49.2]} 6... e5 {[%clk
0:02:51.1]} 7. Bc4 {[%clk 0:02:46.4]} 7... Bc5 {[%clk 0:02:45.8]} 8. O-O {[%clk
0:02:46.2]} 8... a5 {[%clk 0:02:45.6]} 9. a4 {[%clk 0:02:45.5]} 9... O-O {[%clk
0:02:45.1]} 10. Qb3 {[%clk 0:02:42.6]} 10... Qe7 {[%clk 0:02:42]} 11. Re1 {[%clk
0:02:33.2]} 11... Bb6 {[%clk 0:02:17.5]} 12. Nf1 {[%clk 0:02:29]} 12... Ng4
{[%clk 0:02:10.5]} 13. Ne3 {[%clk 0:02:27.2]} 13... Kh8 {[%clk 0:01:44.2]} 14.
Re2 {[%clk 0:02:16.6]} 14... Nxe3 {[%clk 0:01:24.8]} 15. Bxe3 {[%clk 0:02:17.5]}
15... Bxe3 {[%clk 0:01:25.3]} 16. Rxe3 {[%clk 0:02:17.7]} 16... Bg4 {[%clk
0:01:25.8]} 17. Qxb7 {[%clk 0:02:09.5]} 17... Qf6 {[%clk 0:01:15.3]} 18. Qb3
{[%clk 0:01:57.4]} 18... Rab8 {[%clk 0:01:14]} 19. Qc2 {[%clk 0:01:56.7]} 19...
Ne7 {[%clk 0:01:01.7]} 20. h3 {[%clk 0:01:55.9]} 20... Bh5 {[%clk 0:00:56.1]}
21. Nd2 {[%clk 0:01:50.9]} 21... Qb6 {[%clk 0:00:46.9]} 22. b3 {[%clk
0:01:37.4]} 22... f5 {[%clk 0:00:46.9]} 23. exf5 {[%clk 0:01:11.6]} 23... Nxf5
{[%clk 0:00:47.8]} 24. Rxe5 {[%clk 0:01:06.7]} 24... Bg6 {[%clk 0:00:19.7]} 25.
Bd3 {[%clk 0:00:58.7]} 25... Ng3 {[%clk 0:00:15.8]} 26. Re3 {[%clk 0:00:39.6]}
26... Rxf2 {[%clk 0:00:12.4]} 27. Kxf2 {[%clk 0:00:40.5]} 27... Rf8+ {[%clk
0:00:11.9]} 28. Nf3 {[%clk 0:00:40.9]} 28... Re8 {[%clk 0:00:04.7]} 29. Re1
{[%clk 0:00:40.2]} 29... Nh1+ {[%clk 0:00:04.2]} 30. Kg1 {[%clk 0:00:29.4]}
30... Rxe3 {[%clk 0:00:04.6]} 31. Kxh1 {[%clk 0:00:21]} 31... Rxe1+ {[%clk
0:00:04.4]} 32. Nxe1 {[%clk 0:00:20.4]} 32... Qe3 {[%clk 0:00:04.5]} 33. Qe2
{[%clk 0:00:19.1]} 33... Qg3 {[%clk 0:00:04.4]} 34. Bxg6 {[%clk 0:00:15.4]}
34... hxg6 {[%clk 0:00:05.3]} 35. Nf3 {[%clk 0:00:15.5]} 35... Qf4 {[%clk
0:00:05.1]} 36. Qe8+ {[%clk 0:00:14.3]} 36... Kh7 {[%clk 0:00:05.1]} 37. Qe5
{[%clk 0:00:14.3]} 37... Qc1+ {[%clk 0:00:05]} 38. Kh2 {[%clk 0:00:14.6]} 38...
Kh6 {[%clk 0:00:04.2]} 39. h4 {[%clk 0:00:13.9]} 39... Kh7 {[%clk 0:00:04]} 40.
Ng5+ {[%clk 0:00:11.8]} 40... Kh6 {[%clk 0:00:04.2]} 41. Nf7+ {[%clk 0:00:11.5]}
41... Kh7 {[%clk 0:00:04.6]} 42. Qxc7 {[%clk 0:00:07]} 42... Qe1 {[%clk
0:00:02.6]} 43. Ng5+ {[%clk 0:00:06.5]} 43... Kh6 {[%clk 0:00:02.2]} 44. Qf4
{[%clk 0:00:06.3]} 44... Kh5 {[%clk 0:00:01.4]} 45. g4+ {[%clk 0:00:04.3]} 1-0

[Event "*** Titled Tuesday Blitz"]
[Site "Chess.com"]
[Date "2021.03.02"]
[Round "3"]
[White "kuba2006"]
[Black "suneebaker"]
[Result "1-0"]
[WhiteElo "2366"]
[BlackElo "2165"]
[TimeControl "180+1"]
[EndTime "10:29:04 PST"]
[Termination "kuba2006 won on time"]

1. b3 {[%clk 0:03:00.9]} 1... e5 {[%clk 0:02:58.5]} 2. Bb2 {[%clk 0:03:00.5]}
2... Nc6 {[%clk 0:02:57.9]} 3. e3 {[%clk 0:03:00.1]} 3... Nf6 {[%clk 0:02:53.8]}
4. Bb5 {[%clk 0:02:59.3]} 4... d6 {[%clk 0:02:51]} 5. Nf3 {[%clk 0:02:55.3]}
5... Bd7 {[%clk 0:02:48.4]} 6. O-O {[%clk 0:02:52]} 6... g6 {[%clk 0:02:45.1]}
7. d4 {[%clk 0:02:49.1]} 7... Bg7 {[%clk 0:02:36.8]} 8. Bxc6 {[%clk 0:02:45]}
8... Bxc6 {[%clk 0:02:31.3]} 9. dxe5 {[%clk 0:02:45]} 9... Nd7 {[%clk
0:02:20.5]} 10. Nd4 {[%clk 0:02:06.3]} 10... Bxe5 {[%clk 0:02:09.3]} 11. Nxc6
{[%clk 0:02:04.9]} 11... bxc6 {[%clk 0:02:08.5]} 12. Bxe5 {[%clk 0:02:03.6]}
12... Nxe5 {[%clk 0:02:07.9]} 13. c4 {[%clk 0:02:00.2]} 13... Qf6 {[%clk
0:02:04.9]} 14. Nd2 {[%clk 0:01:51.3]} 14... O-O {[%clk 0:02:00]} 15. f4 {[%clk
0:01:49.4]} 15... Nd7 {[%clk 0:01:57.6]} 16. Qf3 {[%clk 0:01:47.7]} 16... c5
{[%clk 0:01:49.2]} 17. Ne4 {[%clk 0:01:39.4]} 17... Qg7 {[%clk 0:01:46.1]} 18.
Rac1 {[%clk 0:01:33.6]} 18... Rae8 {[%clk 0:01:39.6]} 19. Nc3 {[%clk 0:01:31.3]}
19... Nf6 {[%clk 0:01:30.9]} 20. e4 {[%clk 0:01:24.9]} 20... Nd7 {[%clk
0:01:16.6]} 21. Rfd1 {[%clk 0:01:18.4]} 21... Nb6 {[%clk 0:01:08.8]} 22. Nb5
{[%clk 0:01:11.5]} 22... Re7 {[%clk 0:01:03.1]} 23. Nxa7 {[%clk 0:00:43.3]}
23... Rfe8 {[%clk 0:00:54.6]} 24. e5 {[%clk 0:00:42.6]} 24... dxe5 {[%clk
0:00:47.6]} 25. Nc6 {[%clk 0:00:41.3]} 25... Re6 {[%clk 0:00:46.6]} 26. Nxe5
{[%clk 0:00:37.9]} 26... f6 {[%clk 0:00:33.9]} 27. Nd3 {[%clk 0:00:36.3]} 27...
Re3 {[%clk 0:00:33]} 28. Qc6 {[%clk 0:00:32.8]} 28... Qe7 {[%clk 0:00:30.9]} 29.
h3 {[%clk 0:00:21.5]} 29... Re2 {[%clk 0:00:29.6]} 30. Qxc5 {[%clk 0:00:19.9]}
30... Qe4 {[%clk 0:00:27.6]} 31. Nf2 {[%clk 0:00:15.9]} 31... Qxf4 {[%clk
0:00:19.7]} 32. Rf1 {[%clk 0:00:15.1]} 32... Qg3 {[%clk 0:00:18.6]} 33. Rcd1
{[%clk 0:00:13.5]} 33... Rxa2 {[%clk 0:00:17.3]} 34. b4 {[%clk 0:00:12.7]} 34...
Rc2 {[%clk 0:00:16.5]} 35. Rd4 {[%clk 0:00:08.1]} 35... Qe3 {[%clk 0:00:09.2]}
36. Qc6 {[%clk 0:00:05.2]} 36... Qxd4 {[%clk 0:00:07.9]} 37. Qxe8+ {[%clk
0:00:05.2]} 37... Kg7 {[%clk 0:00:07]} 38. Qe7+ {[%clk 0:00:05.5]} 38... Kh6
{[%clk 0:00:07]} 39. Qxc7 {[%clk 0:00:05.6]} 39... Nxc4 {[%clk 0:00:06.7]} 40.
Qg3 {[%clk 0:00:05.5]} 40... Ne3 {[%clk 0:00:05.8]} 41. Re1 {[%clk 0:00:05.5]}
41... Nf5 {[%clk 0:00:05.2]} 42. Qf3 {[%clk 0:00:04.7]} 42... Qd2 {[%clk
0:00:04.7]} 43. Rf1 {[%clk 0:00:04]} 43... Nd4 {[%clk 0:00:03.6]} 44. Ng4+
{[%clk 0:00:04.3]} 1-0

[Event "*** Titled Tuesday Blitz"]
[Site "Chess.com"]
[Date "2021.03.02"]
[Round "3"]
[White "Firouzja2003"]
[Black "Mazetovic"]
[Result "0-1"]
[WhiteElo "3134"]
[BlackElo "2730"]
[TimeControl "180+1"]
[EndTime "10:29:05 PST"]
[Termination "Mazetovic won by resignation"]

1. d4 {[%clk 0:03:00.9]} 1... Nf6 {[%clk 0:02:59.6]} 2. Bg5 {[%clk 0:03:00.7]}
2... d5 {[%clk 0:02:57.4]} 3. e3 {[%clk 0:03:00]} 3... Nbd7 {[%clk 0:02:56.4]}
4. Nf3 {[%clk 0:02:55.9]} 4... g6 {[%clk 0:02:56.3]} 5. c4 {[%clk 0:02:55.2]}
5... Bg7 {[%clk 0:02:53.1]} 6. Nc3 {[%clk 0:02:55.5]} 6... dxc4 {[%clk
0:02:51.1]} 7. Bxc4 {[%clk 0:02:56.4]} 7... O-O {[%clk 0:02:50.8]} 8. O-O {[%clk
0:02:55.1]} 8... c6 {[%clk 0:02:51.3]} 9. h3 {[%clk 0:02:52.2]} 9... Nb6 {[%clk
0:02:50]} 10. Bb3 {[%clk 0:02:52.4]} 10... Bf5 {[%clk 0:02:42.9]} 11. Qe2 {[%clk
0:02:52.6]} 11... Ne4 {[%clk 0:02:42.1]} 12. Bh4 {[%clk 0:02:52.3]} 12... a5
{[%clk 0:02:14.6]} 13. a3 {[%clk 0:02:47.2]} 13... Nd5 {[%clk 0:02:09.7]} 14.
Nxd5 {[%clk 0:02:43.8]} 14... cxd5 {[%clk 0:02:09.2]} 15. Qb5 {[%clk 0:02:44.4]}
15... Be6 {[%clk 0:01:58.5]} 16. Ng5 {[%clk 0:02:44.4]} 16... Nxg5 {[%clk
0:01:57.5]} 17. Bxg5 {[%clk 0:02:45.3]} 17... Bf6 {[%clk 0:01:48.1]} 18. Bxf6
{[%clk 0:02:43.8]} 18... exf6 {[%clk 0:01:47.6]} 19. Rfc1 {[%clk 0:02:44.4]}
19... Ra6 {[%clk 0:01:47.3]} 20. Rc3 {[%clk 0:02:33.6]} 20... Qd6 {[%clk
0:01:34.6]} 21. Rac1 {[%clk 0:02:32.5]} 21... Rfa8 {[%clk 0:01:28]} 22. Ba4
{[%clk 0:02:05.3]} 22... Rb6 {[%clk 0:01:20]} 23. Qe2 {[%clk 0:02:05.5]} 23...
Kg7 {[%clk 0:01:19]} 24. Bb5 {[%clk 0:02:03]} 24... a4 {[%clk 0:01:18.4]} 25.
Rc5 {[%clk 0:02:02.7]} 25... h5 {[%clk 0:01:12.8]} 26. R1c3 {[%clk 0:02:01.8]}
26... h4 {[%clk 0:01:12.1]} 27. Bd3 {[%clk 0:01:59.4]} 27... f5 {[%clk
0:01:09.8]} 28. Qd2 {[%clk 0:01:56.5]} 28... Bd7 {[%clk 0:01:00.6]} 29. Be2
{[%clk 0:01:51.3]} 29... Bc6 {[%clk 0:00:59.3]} 30. Bd1 {[%clk 0:01:51.3]} 30...
Re8 {[%clk 0:00:54.6]} 31. Bf3 {[%clk 0:01:51.3]} 31... Rd8 {[%clk 0:00:44.2]}
32. Ra5 {[%clk 0:01:51]} 32... Re8 {[%clk 0:00:39.1]} 33. Rcc5 {[%clk
0:01:49.5]} 33... f4 {[%clk 0:00:25.9]} 34. Bxd5 {[%clk 0:01:39.1]} 34... fxe3
{[%clk 0:00:25.1]} 35. fxe3 {[%clk 0:01:40]} 35... Qg3 {[%clk 0:00:19.3]} 36.
Bc4 {[%clk 0:01:07]} 36... Rxe3 {[%clk 0:00:16]} 37. d5 {[%clk 0:01:07.1]} 37...
Re1+ {[%clk 0:00:14.1]} 38. Bf1 {[%clk 0:01:07.7]} 38... Bd7 {[%clk 0:00:12]}
39. Rc3 {[%clk 0:01:02.7]} 39... Rf6 {[%clk 0:00:10.9]} 40. Qe2 {[%clk
0:00:45.3]} 40... Rfxf1+ {[%clk 0:00:08.2]} 41. Qxf1 {[%clk 0:00:45.1]} 41...
Rxf1+ {[%clk 0:00:07.9]} 42. Kxf1 {[%clk 0:00:46]} 42... Qf4+ {[%clk 0:00:07.8]}
43. Kg1 {[%clk 0:00:46.5]} 43... Qd2 {[%clk 0:00:07.4]} 44. Rac5 {[%clk
0:00:41.9]} 44... Bf5 {[%clk 0:00:07.4]} 45. R5c4 {[%clk 0:00:36.6]} 45... Qxb2
{[%clk 0:00:07.1]} 46. Rf3 {[%clk 0:00:35.8]} 46... Qd2 {[%clk 0:00:05.2]} 47.
Rxa4 {[%clk 0:00:31.7]} 47... Qxd5 {[%clk 0:00:05.2]} 48. Rxh4 {[%clk 0:00:30]}
48... Be4 {[%clk 0:00:05.2]} 49. Rf2 {[%clk 0:00:26.2]} 49... f5 {[%clk
0:00:05.7]} 50. Rb2 {[%clk 0:00:13.9]} 50... g5 {[%clk 0:00:05.8]} 51. Rh5
{[%clk 0:00:13.7]} 51... Qd1+ {[%clk 0:00:05.1]} 0-1

[Event "*** Titled Tuesday Blitz"]
[Site "Chess.com"]
[Date "2021.03.02"]
[Round "3"]
[White "TST2014"]
[Black "bocah_sakit"]
[Result "0-1"]
[WhiteElo "2631"]
[BlackElo "2866"]
[TimeControl "180+1"]
[EndTime "10:29:06 PST"]
[Termination "bocah_sakit won on time"]

1. d4 {[%clk 0:03:00.9]} 1... Nf6 {[%clk 0:02:59.9]} 2. c4 {[%clk 0:03:00.5]}
2... g6 {[%clk 0:03:00.6]} 3. Nc3 {[%clk 0:03:00]} 3... Bg7 {[%clk 0:03:01.5]}
4. e4 {[%clk 0:02:59.9]} 4... d6 {[%clk 0:03:02.1]} 5. Nf3 {[%clk 0:02:59.7]}
5... O-O {[%clk 0:03:02.7]} 6. Be2 {[%clk 0:02:59.6]} 6... Nc6 {[%clk
0:03:03.4]} 7. d5 {[%clk 0:02:58.1]} 7... Nb8 {[%clk 0:03:02.7]} 8. O-O {[%clk
0:02:57.9]} 8... c6 {[%clk 0:03:02.3]} 9. Be3 {[%clk 0:02:54.2]} 9... a5 {[%clk
0:03:02.3]} 10. Nd4 {[%clk 0:02:50.9]} 10... cxd5 {[%clk 0:03:00.2]} 11. cxd5
{[%clk 0:02:47.8]} 11... Na6 {[%clk 0:03:00.7]} 12. Rc1 {[%clk 0:02:37.8]} 12...
Nc5 {[%clk 0:02:59.8]} 13. f3 {[%clk 0:02:37.7]} 13... Bd7 {[%clk 0:02:59.4]}
14. Bb5 {[%clk 0:02:34.1]} 14... Bxb5 {[%clk 0:02:44.3]} 15. Ndxb5 {[%clk
0:02:30.3]} 15... Nfd7 {[%clk 0:02:44.9]} 16. Qe2 {[%clk 0:02:21.5]} 16... a4
{[%clk 0:02:43.9]} 17. Rc2 {[%clk 0:02:21]} 17... Qa5 {[%clk 0:02:43]} 18. Rfc1
{[%clk 0:02:20.3]} 18... Rfc8 {[%clk 0:02:42.6]} 19. Bg5 {[%clk 0:02:10.5]}
19... Kf8 {[%clk 0:02:37]} 20. f4 {[%clk 0:01:50.9]} 20... Na6 {[%clk
0:02:09.4]} 21. Kh1 {[%clk 0:01:36.2]} 21... Nb4 {[%clk 0:02:05.8]} 22. Rd2
{[%clk 0:01:32.1]} 22... Na6 {[%clk 0:01:19]} 23. h3 {[%clk 0:01:27.2]} 23...
Nc7 {[%clk 0:01:16.6]} 24. Rdc2 {[%clk 0:01:08]} 24... Nxb5 {[%clk 0:01:13.4]}
25. Nxb5 {[%clk 0:01:07.9]} 25... Rxc2 {[%clk 0:01:13.4]} 26. Rxc2 {[%clk
0:01:08.8]} 26... Nc5 {[%clk 0:01:14.1]} 27. e5 {[%clk 0:01:05.3]} 27... Re8
{[%clk 0:00:55.7]} 28. Qc4 {[%clk 0:00:09.6]} 28... Qe1+ {[%clk 0:00:45.9]} 29.
Kh2 {[%clk 0:00:09.4]} 29... Ne4 {[%clk 0:00:31.2]} 30. Bh4 {[%clk 0:00:02.4]}
30... Qxh4 {[%clk 0:00:24.3]} 31. Qxe4 {[%clk 0:00:03]} 31... Bxe5 {[%clk
0:00:24.7]} 32. g3 {[%clk 0:00:03]} 32... Qh5 {[%clk 0:00:12.1]} 33. fxe5 {[%clk
0:00:02.7]} 33... dxe5 {[%clk 0:00:13]} 34. Re2 {[%clk 0:00:02.4]} 34... f6
{[%clk 0:00:12.9]} 35. Nc3 {[%clk 0:00:02.6]} 35... Qg5 {[%clk 0:00:12.4]} 36.
h4 {[%clk 0:00:02.1]} 36... Qc1 {[%clk 0:00:12.3]} 37. Qe3 {[%clk 0:00:02]}
37... Qa1 {[%clk 0:00:11.9]} 38. Qf3 {[%clk 0:00:01.8]} 38... Rc8 {[%clk
0:00:11.9]} 39. d6 {[%clk 0:00:02.1]} 39... Kf7 {[%clk 0:00:10.8]} 40. d7 {[%clk
0:00:01.7]} 40... Rd8 {[%clk 0:00:11]} 41. Rd2 {[%clk 0:00:02.2]} 41... a3
{[%clk 0:00:11]} 42. bxa3 {[%clk 0:00:01.5]} 42... Qc1 {[%clk 0:00:09.3]} 43.
Qd5+ {[%clk 0:00:01.3]} 43... e6 {[%clk 0:00:08.6]} 44. Qd3 {[%clk 0:00:01.6]}
44... f5 {[%clk 0:00:07.7]} 45. Ne2 {[%clk 0:00:01.5]} 45... Qe1 {[%clk
0:00:07.1]} 46. Nc3 {[%clk 0:00:01.1]} 46... e4 {[%clk 0:00:07.6]} 0-1